Workbook

Sheet Лист1
A1: Школа | C1: ГБОУ "Маскаринская школа- интернат для детей с ограниченными возможностями здоровья" | F1: Утвердил: | G1: должность | H1: директор
A2: Типовое примерное меню приготавливаемых блюд | G2: фамилия | H2: Сабитов Ш. Н.
A3: Возрастная категория | E3: 7-11 лет | G3: дата | H3: 28 | I3: 12 | J3: 2023
H4: день | I4: месяц | J4: год
A5: Неделя | B5: День недели | C5: Прием пищи | D5: Раздел меню | E5: Блюда | F5: Вес блюда, г | G5: Белки | H5: Жиры | I5: Углеводы | J5: Калорийность | K5: № рецептуры | L5: Цена
A6: 2 | B6: 4 | C6: Завтрак | D6: гор.блюдо | E6: Каша ячневая молочная | F6: 200/15 | G6: 7.5 | H6: 5.9 | I6: 42.5 | J6: 297.1 | K6: 24 | L6: 14.61
D7: масло | E7: Масло сливочное | F7: 10 | G7: 0.4 | H7: 62.5 | I7: 0.8 | J7: 70 | K7: 50 | L7: 4.48
D8: гор.напиток | E8: Чай с молоком | F8: 200 | G8: 1.64 | H8: 1.64 | I8: 2.38 | J8: 30 | K8: 52 | L8: 7.82
D9: хлеб | E9: Хлеб пшеничный | F9: 120 | G9: 3.1 | H9: 0.2 | I9: 20.1 | J9: 94.7 | K9: 37 | L9: 5.47
D10: фрукты | E10: Апельсин | F10: 100 | G10: 1.4 | H10: 0.3 | I10: 8.1 | J10: 34.2 | K10: 61 | L10: 12.14
D13: итого | F13: =SUM(F6:F12) -> 430 | G13: =SUM(G6:G12) -> 14.04 | H13: 70.54 | I13: 73.88 | J13: 526 | L13: =SUM(L6:L12) -> 44.52
A14: =A6 -> 2 | B14: =B6 -> 4 | C14: Завтрак 2 | D14: фрукты | E14: Банан | F14: 100 | G14: 1.4 | H14: 0.3 | I14: 12.1 | J14: 64.2 | K14: 62 | L14: 10.27
D15: хлеб | E15: Хлеб пшеничный | F15: 160 | G15: 3.1 | H15: 0.2 | I15: 20.1 | J15: 94.7 | K15: 37 | L15: 7.3
D16: кондит.изд | E16: Кекс | F16: 30 | G16: 3.2 | H16: 4.1 | I16: 32.6 | J16: 106.4 | K16: 74 | L16: 6.3
D17: гор.напиток | E17: Какао с молоком | F17: 200 | G17: 4.62 | H17: 4.02 | I17: 43.8 | J17: 177.56 | K17: 63 | L17: 8.37
D18: итого | F18: =SUM(F14:F17) -> 490 | G18: =SUM(G14:G17) -> 12.32 | H18: 8.62 | I18: 108.6 | J18: 265.3 | L18: =SUM(L14:L17) -> 32.24
A19: =A6 -> 2 | B19: =B6 -> 4 | C19: Обед | D19: закуска
D20: 1 блюдо | E20: Суп лапша домашняя к/м. | F20: 250 | G20: 4.22 | H20: 3.95 | I20: 22.66 | J20: 152 | K20: 5 | L20: 21
D21: 2 блюдо | E21: Капуста тушенная с мясным фаршем из говядины | F21: 200 | G21: 10 | H21: 8.2 | I21: 10.8 | J21: 280 | K21: 9 | L21: 24.84
D22: гарнир
D23: напиток | E23: Компот из смеси с/ф. | F23: 200 | G23: 4 | H23: 0.06 | I23: 35.2 | J23: 110 | K23: 53 | L23: 2.53
D24: хлеб бел.
D25: хлеб | E25: Хлеб"Дарницкий" | F25: 80 | G25: 2.6 | H25: 0.4 | I25: 17 | J25: 81.6 | K25: 36 | L25: 4.36
D28: итого | F28: =SUM(F19:F27) -> 730 | G28: =SUM(G19:G27) -> 20.82 | H28: 12.61 | I28: 85.66 | J28: 623.6 | L28: =SUM(L20:L27) -> 52.73
A29: =A6 -> 2 | B29: =B6 -> 4 | C29: Полдник | D29: булочное
D30: напиток
D33: итого | F33: =SUM(F29:F32) -> 0 | G33: =SUM(G29:G32) -> 0 | H33: 0 | I33: 0 | J33: 0
A34: =A6 -> 2 | B34: =B6 -> 4 | C34: Ужин | D34: гор.блюдо | E34: Жаркое по домашнему | F34: 200/11 | G34: 24.7 | H34: 13.3 | I34: 16.5 | J34: 145.08 | K34: 8 | L34: 24.21
D35: гарнир
D36: гор.напиток | E36: Чай сладкий | F36: 200 | G36: 0.1 | H36: 0 | I36: 9.9 | J36: 39.9 | K36: 51 | L36: 1.45
D37: хлеб | E37: Хлеб"Дарницкий" | F37: 80 | G37: 2.6 | H37: 0.4 | I37: 17 | J37: 81.6 | K37: 36 | L37: 4.36
D38: творог | E38: Творог со сметаной | F38: 200/10 | G38: 18 | H38: 9 | I38: 3 | J38: 164.3 | K38: 40 | L38: 62.28
D39: масло | E39: Масло сливочное | F39: 10 | G39: 0.4 | H39: 62.5 | I39: 0.8 | J39: 70 | K39: 50 | L39: 4.48
D40: итого | F40: =SUM(F34:F39) -> 290 | G40: =SUM(G34:G39) -> 45.8 | H40: 85.2 | I40: 47.2 | J40: 500.88 | L40: =SUM(L34:L39) -> 96.78
A41: =A6 -> 2 | B41: =B6 -> 4 | C41: Ужин 2 | D41: кисломол. | E41: Ряженка | F41: 200 | G41: 12 | H41: 2 | I41: 8.4 | J41: 80 | K41: 58 | L41: 19.31
D42: фрукты | E42: Яблоки св. | F42: 100 | G42: 0.6 | H42: 0.6 | I42: 14.3 | J42: 68.6 | K42: 60 | L42: 8.63
D43: напиток
D47: итого | F47: =SUM(F41:F46) -> 300 | G47: =SUM(G41:G46) -> 12.6 | H47: 2.6 | I47: 22.7 | J47: 148.6 | L47: =SUM(L41:L46) -> 27.94
A48: =A6 -> 2 | B48: =B6 -> 4 | C48: Итого за день: | F48: =F13+F18+F28+F33+F40+F47 -> 2240 | G48: =G13+G18+G28+G33+G40+G47 -> 105.58 | H48: 179.57 | I48: 338.04 | J48: 2064.38 | L48: =L13+L18+L28+L33+L40+L47 -> 254.21
